bitfinex/quotes_SOLUSD_20250626
["timestamp","ask_amount","ask_price","bid_price","bid_amount"]
[1750900457051,5.21020983,144.2,144.16,18.64964886]
[1750900457371,0.04,144.2,144.16,18.64964886]
[1750900457754,5.2093223,144.2,144.16,18.64964886]
[1750900458059,5.2093223,144.2,144.16,25.58606431]
[1750900465448,0.04,144.2,144.16,25.58606431]
[1750900469456,5.20711206,144.2,144.16,25.58606431]
[1750900470581,5.16711206,144.19,144.16,25.58606431]
[1750900478486,0.04,144.2,144.16,25.58606431]
[1750900478790,5.17226314,144.19,144.16,25.58606431]
[1750900478972,0.04,144.2,144.16,25.58606431]
[1750900479163,5.17226314,144.19,144.16,25.58606431]
[1750900479361,0.04,144.2,144.16,42.9279067]
[1750900479563,5.21263432,144.2,144.16,42.9279067]
[1750900479771,0.04,144.2,144.16,44.4305067]
[1750900480215,0.04,144.2,144.17,28.44432314]
[1750900481393,0.04,144.2,144.19,18.64964886]
[1750900483798,0.04,144.2,144.19,6.9352937]
[1750900485101,0.04,144.2,144.19,7.36177841]
[1750900491788,0.04,144.2,144.19,26.01142727]
[1750900492490,0.04,144.2,144.19,25.58494256]
[1750900492685,0.04,144.2,144.19,53.74494256]
[1750900495604,0.04,144.2,144.19,25.58494256]
[1750900497905,0.04,144.2,144.19,25.61964256]
[1750900501449,0.04,144.21,144.2,25.58446162]
[1750900503512,0.04,144.21,144.2,54.02878476]
[1750900503712,0.04,144.21,144.2,59.68774051]
[1750900509917,0.04,144.21,144.2,53.74446162]
[1750900510211,0.04,144.21,144.2,25.58446162]
[1750900511099,0.04,144.21,144.2,31.24341737]
[1750900515126,0.04,144.21,144.2,31.52774051]
[1750900518936,0.04,144.21,144.2,25.58446162]
[1750900527882,5.69895575,144.21,144.19,0.0347]
[1750900528165,10.84817362,144.2,144.19,0.0347]
[1750900530421,5.18921787,144.2,144.19,0.0347]
[1750900530628,0.04,144.21,144.19,0.0347]
[1750900532738,0.04,144.21,144.2,18.64964886]
[1750900532945,5.22513635,144.21,144.2,18.64964886]
[1750900533143,0.04,144.21,144.2,18.64964886]
[1750900533839,0.04,144.21,144.2,24.30860461]
[1750900534030,0.04,144.21,144.2,52.44860461]
[1750900535254,0.04,144.21,144.2,59.66774051]
[1750900535856,0.04,144.21,144.2,53.72446162]
[1750900536938,0.04,144.21,144.2,59.38341737]
[1750900540562,0.04,144.21,144.2,59.66774051]
[1750900541547,0.04,144.21,144.2,59.38341737]
[1750900541777,0.04,144.21,144.2,53.72446162]
[1750900544171,0.04,144.21,144.2,25.58446162]
[1750900544663,0.04,144.21,144.2,31.24341737]
[1750900546164,0.04,144.21,144.2,31.52774051]
[1750900548380,0.04,144.21,144.2,25.58446162]
[1750900548550,10.88396631,144.21,144.2,25.58446162]
[1750900548874,10.88396631,144.21,144.19,25.61947486]
[1750900549074,5.69895575,144.21,144.19,25.61947486]
[1750900551177,0.04,144.21,144.19,25.61947486]
[1750900554360,5.69895575,144.21,144.19,25.61947486]
[1750900554560,5.18409557,144.2,144.19,25.61947486]
[1750900559291,5.18409557,144.2,144.19,0.0347]
[1750900559470,10.84305132,144.2,144.19,0.0347]
[1750900561983,157.34305132,144.2,144.19,0.0347]
[1750900578074,26.0,144.17,144.14,0.02]
[1750900578373,31.65895575,144.15,144.14,0.02]
[1750900579599,1.5517,144.17,144.14,0.02]
[1750900579600,5.17245029,144.16,144.14,0.02]
[1750900579810,10.83140604,144.18,144.14,5.67895575]
[1750900580014,5.65895575,144.18,144.15,18.64964886]
[1750900581106,5.65895575,144.18,144.16,6.93673695]
[1750900581279,26.0,144.17,144.16,25.58638581]
[1750900582893,26.0,144.17,144.15,6.93716979]
[1750900583092,31.65895575,144.17,144.15,6.93716979]
[1750900583597,26.0,144.17,144.15,6.93716979]
[1750900587022,31.65895575,144.17,144.14,25.6071777]
[1750900587376,36.83249924,144.17,144.14,25.6071777]
[1750900587582,31.65895575,144.17,144.14,25.6071777]
[1750900588005,36.83267764,144.17,144.14,25.6071777]
[1750900588218,31.65895575,144.17,144.14,25.6071777]
[1750900588588,36.8329733,144.17,144.14,25.6071777]
[1750900588788,31.65895575,144.17,144.14,25.6071777]
[1750900589207,26.0,144.17,144.14,31.26613345]
[1750900590204,26.0,144.17,144.14,25.6071777]
[1750900593717,26.0,144.17,144.14,31.26613345]
[1750900594113,26.0,144.17,144.14,25.6071777]
[1750900594321,26.0,144.17,144.14,31.26613345]
[1750900598695,146.5,144.19,144.16,5.65895575]
[1750900598888,146.5,144.19,144.17,24.30860461]
[1750900598889,5.18425603,144.18,144.17,24.30860461]
[1750900599104,31.69895575,144.21,144.17,24.30860461]
[1750900599315,5.18489708,144.2,144.17,24.30860461]
[1750900599523,5.18489708,144.19,144.17,24.30860461]
[1750900599817,31.69895575,144.21,144.17,24.30860461]
[1750900600018,5.18486477,144.2,144.17,24.30860461]
[1750900600315,5.18486477,144.19,144.17,24.30860461]
[1750900600514,26.04,144.21,144.19,18.64964886]
[1750900600692,5.18506502,144.2,144.19,18.64964886]
[1750900600888,5.18506502,144.2,144.19,25.58494256]
[1750900603620,5.18506502,144.2,144.19,31.24389831]
[1750900603820,0.04,144.21,144.19,31.24389831]
[1750900603996,0.04,144.21,144.2,24.30860461]
[1750900604700,0.04,144.21,144.2,18.64964886]
[1750900605223,5.22369018,144.21,144.2,18.64964886]
[1750900605395,36.88264593,144.21,144.18,25.58496568]
[1750900605590,5.18369018,144.2,144.18,25.58496568]
[1750900605811,5.69895575,144.21,144.18,25.58496568]
[1750900606008,5.18310052,144.2,144.18,25.58496568]
[1750900606212,5.69895575,144.21,144.18,25.58496568]
[1750900606423,5.18310171,144.2,144.18,25.58496568]
[1750900606723,5.69895575,144.21,144.18,25.58496568]
[1750900606905,5.1825538,144.2,144.18,25.58496568]
[1750900607112,5.69895575,144.21,144.18,25.58496568]
[1750900607321,5.1825538,144.2,144.18,25.58496568]
[1750900607618,5.69895575,144.21,144.18,25.58496568]
[1750900607819,5.18240625,144.2,144.18,25.58496568]
[1750900608000,5.69895575,144.21,144.18,25.58496568]
[1750900608200,5.18248196,144.2,144.18,25.58496568]
[1750900608400,5.69895575,144.21,144.18,25.58496568]
[1750900608596,5.181994,144.2,144.18,25.58496568]
[1750900608806,5.69895575,144.21,144.18,25.58496568]
[1750900609012,5.18199519,144.2,144.18,25.58496568]
[1750900609215,5.69895575,144.21,144.18,25.58496568]
[1750900609425,5.18180973,144.2,144.18,25.58496568]
[1750900609726,5.69895575,144.21,144.18,25.58496568]
[1750900609902,5.18160108,144.2,144.18,25.58496568]
[1750900610105,5.69895575,144.21,144.18,25.58496568]
[1750900610305,5.18159989,144.2,144.18,25.58496568]
[1750900610508,5.69895575,144.21,144.18,25.58496568]
[1750900610717,5.18126736,144.2,144.18,25.58496568]
[1750900610904,5.69895575,144.21,144.18,25.58496568]
[1750900611106,5.18126736,144.2,144.18,25.58496568]
[1750900611304,5.69895575,144.21,144.18,25.58496568]
[1750900611529,5.18091253,144.2,144.18,25.58496568]
[1750900611722,5.69895575,144.21,144.18,25.58496568]
[1750900611723,0.04,144.21,144.19,5.65895575]
[1750900612811,0.04,144.21,144.2,18.64964886]
[1750900613009,5.22014235,144.21,144.2,18.64964886]
[1750900614134,5.22014235,144.21,144.2,25.58446162]
[1750900623339,5.2173803,144.21,144.18,6.93560773]
[1750900623552,0.04,144.21,144.18,6.93560773]
[1750900626515,5.65895575,144.19,144.15,5.65895575]
[1750900626717,5.65895575,144.17,144.14,25.60716446]
[1750900626940,5.65895575,144.18,144.14,25.60716446]
[1750900628037,5.65895575,144.18,144.14,31.26612021]
[1750900628420,5.65895575,144.18,144.14,25.60716446]
[1750900629136,5.18025382,144.17,144.14,25.60716446]
[1750900629339,146.5,144.2,144.14,25.60716446]
[1750900629639,5.65895575,144.18,144.14,25.60716446]
[1750900629836,5.1802596,144.17,144.14,25.60716446]
[1750900630038,5.65895575,144.18,144.14,25.60716446]
[1750900630348,5.18025842,144.17,144.14,25.60716446]
[1750900630538,5.65895575,144.18,144.14,25.60716446]
[1750900630723,5.18027968,144.17,144.14,25.60716446]
[1750900630927,5.65895575,144.18,144.14,25.60716446]
[1750900631127,10.83923543,144.17,144.14,25.60716446]
[1750900631323,5.65895575,144.17,144.14,25.60716446]
[1750900632448,5.65895575,144.16,144.14,0.02]
[1750900634151,5.65895575,144.15,144.14,0.02]
[1750900634652,10.8397304,144.15,144.14,0.02]
[1750900637122,5.18077465,144.15,144.14,0.02]
[1750900637430,146.5,144.16,144.14,0.02]
[1750900638556,152.15895575,144.16,144.14,0.02]
[1750900641142,146.5,144.16,144.14,0.02]
[1750900641640,152.15895575,144.16,144.14,0.02]
[1750900641954,5.65895575,144.15,144.14,0.02]
[1750900642853,10.83399948,144.15,144.14,0.02]
[1750900643231,5.65895575,144.15,144.14,0.02]
[1750900644535,10.83243203,144.15,144.14,0.02]
[1750900646357,16.11496946,144.15,144.14,0.02]
[1750900647949,10.83243203,144.15,144.14,0.02]
[1750900648143,36.83243203,144.15,144.14,0.02]
[1750900648965,36.82630936,144.15,144.14,0.02]
[1750900650553,26.0,144.15,144.14,0.02]
[1750900650937,31.16735361,144.15,144.14,0.02]
[1750900651139,26.0,144.15,144.14,0.02]
[1750900651346,31.65895575,144.15,144.14,0.02]
[1750900651753,36.82630936,144.15,144.14,0.02]
[1750900652254,31.65895575,144.15,144.14,0.02]
[1750900652761,36.82630936,144.15,144.14,0.02]
[1750900653464,31.65895575,144.15,144.14,0.02]
[1750900654064,36.82630936,144.15,144.14,0.02]
[1750900654438,31.65895575,144.15,144.14,0.02]
[1750900654847,36.82630936,144.15,144.14,0.02]
[1750900655062,31.65895575,144.15,144.14,0.02]
[1750900657876,36.82341592,144.15,144.14,0.02]
[1750900658771,10.96557749,144.15,144.14,0.02]
[1750900662182,10.82341592,144.15,144.14,0.02]
[1750900664556,36.82341592,144.15,144.14,0.02]
[1750900664882,31.65895575,144.15,144.14,0.02]
[1750900665090,36.82341592,144.15,144.14,0.02]
[1750900665556,31.65895575,144.15,144.14,0.02]
[1750900666181,36.82341592,144.15,144.14,0.02]
[1750900666860,31.65895575,144.15,144.14,0.02]
[1750900667266,36.82341592,144.15,144.14,0.02]
[1750900671774,22.28082222,144.15,144.14,0.02]
[1750900673785,17.4247695,144.15,144.14,0.02]
[1750900675770,22.28082222,144.15,144.14,0.02]
[1750900677374,15.82163021,144.15,144.13,0.02]
[1750900677577,11.64245753,144.14,144.13,0.02]
[1750900678596,17.30141328,144.14,144.13,0.02]
[1750900678895,10.82341592,144.14,144.13,0.02]
[1750900681090,17.30141328,144.14,144.13,0.02]
[1750900681619,22.1578029,144.14,144.13,0.02]
[1750900681998,22.29996447,144.14,144.13,0.02]
[1750900684491,22.58428761,144.14,144.13,0.02]
[1750900684678,0.28432314,144.13,144.12,0.02]
[1750900684884,17.06773906,144.13,144.12,0.02]
[1750900685591,21.92446562,144.13,144.12,0.02]
[1750900686192,26.28432314,144.11,144.1,0.02]
[1750900686399,37.10773906,144.11,144.1,0.02]
[1750900686693,43.59045736,144.11,144.1,0.02]
[1750900687277,47.01544954,144.11,144.1,0.02]
[1750900687498,51.87285013,144.11,144.1,0.02]
[1750900687993,51.87285013,144.11,144.08,0.02]
[1750900687994,5.80111732,144.09,144.08,0.02]
[1750900688173,10.96557749,144.09,144.08,0.02]
[1750900688894,17.44829579,144.09,144.08,0.02]
[1750900689777,10.82341592,144.09,144.08,0.02]
[1750900690492,5.65895575,144.09,144.08,0.02]
[1750900690690,10.84116897,144.09,144.08,0.02]
[1750900693004,15.84140535,144.09,144.08,0.02]
[1750900693206,22.60349502,144.09,144.08,0.02]
[1750900694097,16.12572849,144.09,144.08,0.02]
[1750900699913,26.0,144.06,144.05,0.02]
[1750900700112,42.94333054,144.06,144.05,0.02]
[1750900700689,47.80241703,144.06,144.05,0.02]
[1750900701187,48.08674017,144.06,144.05,0.02]
[1750900704294,42.80116897,144.06,144.05,0.02]
[1750900704615,42.78580125,144.06,144.05,0.02]
[1750900707706,37.1268455,144.06,144.05,0.02]
[1750900707911,37.61895575,144.06,144.05,0.02]
[1750900710016,42.78464931,144.06,144.05,0.02]
[1750900724607,42.92681088,144.06,144.05,0.02]
[1750900729317,49.40457741,144.06,144.05,0.02]
[1750900731039,42.78464931,144.06,144.05,0.02]
[1750900731240,49.26241584,144.06,144.05,0.02]
[1750900731539,42.78464931,144.06,144.05,0.02]
[1750900734220,42.92681088,144.06,144.04,0.02]
[1750900734538,17.31571491,144.05,144.04,0.02]
[1750900735239,22.31730029,144.05,144.03,0.02]
[1750900735440,0.42648471,144.01,143.95,0.02]
[1750900735630,31.65895575,143.98,143.95,0.02]
[1750900735828,36.82464931,143.98,143.95,0.02]
[1750900740130,10.96681088,143.98,143.95,0.02]
[1750900741439,10.82464931,143.98,143.95,0.02]
[1750900742616,37.25113402,143.98,143.95,0.02]
[1750900743030,11.25113402,143.98,143.95,0.02]
[1750900743737,11.25113402,143.98,143.87,18.90272036]
[1750900743738,26.0,143.94,143.87,1.5269]
[1750900743944,5.65895575,143.93,143.88,12.60919205]
[1750900744129,5.65895575,143.93,143.89,18.64964886]
[1750900745242,5.65895575,143.93,143.89,25.59912958]
[1750900745540,5.65895575,143.93,143.89,24.59912958]
[1750900748044,32.0,143.94,143.89,24.59912958]
[1750900748240,5.65895575,143.93,143.89,24.59912958]
[1750900748746,5.65895575,143.92,143.89,24.59912958]
[1750900749948,5.65895575,143.9,143.87,6.95071939]
[1750900750138,146.5,143.91,143.85,18.64964886]
[1750900750346,5.65895575,143.9,143.85,24.30860461]
[1750900750721,5.65895575,143.9,143.86,6.95120255]
[1750900751124,5.65895575,143.9,143.86,12.6101583]
[1750900751428,5.65895575,143.9,143.87,1.544]
[1750900751963,5.65895575,143.88,143.85,18.64964886]
[1750900752455,5.65895575,143.87,143.85,18.64964886]
[1750900752950,5.65895575,143.87,143.85,25.60116876]
[1750900753143,5.65895575,143.87,143.85,6.9515199]
[1750900753348,176.18490153,143.91,143.84,6.95212387]
[1750900753349,5.65895575,143.86,143.84,6.95212387]
[1750900753550,146.5,143.9,143.84,6.95212387]
[1750900753751,5.65895575,143.86,143.84,6.95212387]
[1750900754352,5.65895575,143.86,143.83,25.62230129]
[1750900755446,146.5,143.89,143.83,31.28125704]
[1750900755628,5.65895575,143.86,143.83,25.62230129]
[1750900756027,5.65895575,143.85,143.83,6.97265243]
[1750900756265,146.5,143.89,143.83,6.97265243]
[1750900756266,5.65895575,143.84,143.83,6.97265243]
[1750900756626,5.65895575,143.84,143.83,0.02]
[1750900757546,37.46007307,143.84,143.83,0.02]
[1750900757770,26.0,143.81,143.76,8.45886825]
[1750900757923,5.65895575,143.77,143.75,25.6060214]
[1750900758127,5.65895575,143.77,143.75,6.95637254]
[1750900758352,5.65895575,143.78,143.75,6.95637254]
[1750900758755,5.65895575,143.78,143.75,25.6060214]
[1750900759260,5.65895575,143.78,143.75,6.95637254]
[1750900759439,5.65895575,143.77,143.75,6.95637254]
[1750900760055,5.6272939,143.83,143.76,18.64964886]
[1750900760056,5.65895575,143.8,143.76,18.64964886]
[1750900760237,5.65895575,143.81,143.76,24.30860461]
[1750900760631,6.0,143.82,143.78,18.64964886]
[1750900760632,5.65895575,143.82,143.78,18.64964886]
[1750900761336,5.65895575,143.8,143.76,24.30860461]
[1750900761536,5.65895575,143.8,143.77,6.955554]
[1750900762032,5.65895575,143.81,143.77,6.955554]
[1750900763550,32.0,143.83,143.78,18.64964886]
[1750900763749,32.0,143.83,143.78,24.30860461]
[1750900763750,37.65895575,143.83,143.78,24.30860461]
[1750900763940,5.65895575,143.82,143.78,18.64964886]
[1750900765057,5.65895575,143.81,143.78,18.64964886]
[1750900765230,5.65895575,143.8,143.78,18.64964886]
[1750900765938,5.65895575,143.8,143.77,6.95544583]
[1750900766261,5.65895575,143.8,143.77,25.60509469]
[1750900767166,5.65895575,143.78,143.76,6.95592429]
[1750900767548,26.0,143.8,143.76,6.95592429]
[1750900767739,5.65895575,143.79,143.76,6.95592429]
[1750900768051,26.0,143.8,143.75,25.60611542]
[1750900768251,5.65895575,143.78,143.75,6.95646656]
[1750900769468,5.65895575,143.77,143.75,6.95646656]
[1750900770057,5.65895575,143.79,143.75,6.95646656]
[1750900770265,5.65895575,143.79,143.75,25.60611542]
[1750900772170,5.65895575,143.77,143.75,25.60611542]
[1750900772675,26.0,143.8,143.75,25.60611542]
[1750900772849,5.65895575,143.78,143.75,25.60611542]
[1750900776567,146.5,143.83,143.78,18.64964886]
[1750900776874,13.78051826,143.87,143.78,18.64964886]
[1750900776875,152.56,143.86,143.82,5.65895575]
[1750900777075,184.21895575,143.86,143.82,5.65895575]
[1750900777782,152.56,143.86,143.83,18.64964886]
[1750900778278,5.65895575,143.85,143.81,5.65895575]
[1750900778453,5.65895575,143.85,143.81,24.30860461]
[1750900778886,158.21895575,143.86,143.82,6.95313586]
[1750900779863,5.65895575,143.85,143.82,6.95313586]
[1750900780270,5.65895575,143.85,143.81,6.95343695]
[1750900781871,152.56,143.86,143.81,6.95343695]
[1750900782072,5.65895575,143.85,143.81,6.95343695]
[1750900782373,5.65895575,143.82,143.76,6.95567926]
[1750900782560,5.65895575,143.78,143.76,6.95567926]
[1750900782889,5.65895575,143.77,143.75,8.5267314]
[1750900783285,5.65895575,143.77,143.75,6.9564314]
[1750900784373,5.65895575,143.76,143.74,25.60655218]
[1750900784762,5.65895575,143.77,143.74,25.60655218]
[1750900785400,5.65895575,143.78,143.74,25.60655218]
[1750900785568,5.65895575,143.77,143.74,25.60655218]
[1750900786782,5.65895575,143.78,143.74,25.60655218]
[1750900787195,26.0,143.79,143.74,31.26550793]
[1750900787394,31.65895575,143.79,143.75,5.65895575]
[1750900787699,5.65895575,143.78,143.74,31.26550793]
[1750900787868,5.65895575,143.78,143.74,25.60655218]
[1750900788062,26.0,143.79,143.74,25.60655218]
[1750900788273,5.65895575,143.78,143.74,25.60655218]
[1750900790185,26.0,143.77,143.74,25.60655218]
[1750900790382,5.65895575,143.78,143.74,25.60655218]
[1750900792396,26.0,143.77,143.74,25.60655218]
[1750900792571,26.0,143.77,143.76,5.65895575]
[1750900792776,26.0,143.77,143.76,12.61499359]
[1750900793282,42.8608714,143.8,143.76,6.95603784]
[1750900793489,37.69895575,143.8,143.76,6.95603784]
[1750900794177,5.65895575,143.79,143.76,6.95603784]
[1750900794895,32.04,143.8,143.76,6.95603784]
[1750900795078,37.69895575,143.8,143.76,12.61499359]
[1750900795277,31.65895575,143.8,143.76,12.61499359]
[1750900796080,5.16820027,143.81,143.77,24.30860461]
[1750900796397,0.14216157,143.85,143.8,5.65895575]
[1750900796398,11.71895575,143.85,143.8,5.65895575]
[1750900796609,26.0,143.82,143.79,25.95060461]
[1750900797299,26.0,143.82,143.79,20.29164886]
[1750900797490,26.0,143.82,143.8,6.95410292]
[1750900798989,26.0,143.8,143.76,18.64964886]
[1750900799189,31.65895575,143.8,143.76,18.64964886]
[1750900799667,26.0,143.8,143.77,5.65895575]
[1750900800082,26.0,143.8,143.76,30.76451263]
[1750900800976,5.65895575,143.79,143.75,41.74979778]
[1750900801165,5.65895575,143.78,143.75,6.95639778]
[1750900801586,5.65895575,143.79,143.76,18.64964886]
[1750900801892,31.65895575,143.8,143.76,18.64964886]
[1750900802067,5.18993503,143.79,143.75,12.61535353]
[1750900802267,31.65895575,143.8,143.75,12.61535353]
[1750900802468,5.19100291,143.79,143.75,12.61535353]
[1750900802667,31.65895575,143.8,143.75,12.61535353]
[1750900802869,5.19100291,143.79,143.75,12.61535353]
[1750900803063,31.65895575,143.8,143.75,12.61535353]
[1750900803289,5.19136769,143.79,143.75,12.61535353]
[1750900807575,31.65895575,143.8,143.75,12.61535353]
[1750900807892,5.19117648,143.81,143.8,18.64964886]
[1750900808072,5.65895575,143.86,143.8,31.26270753]
[1750900808272,5.19039852,143.85,143.81,5.65895575]
[1750900808502,5.19039852,143.84,143.82,5.65895575]
[1750900808798,5.19039852,143.85,143.82,5.65895575]
[1750900808983,5.19039852,143.84,143.82,5.65895575]
[1750900809181,5.19039852,143.85,143.83,5.65895575]
[1750900809382,5.19039852,143.86,143.83,5.65895575]
[1750900809584,5.19039852,143.85,143.82,5.65895575]
[1750900809776,5.19039852,143.86,143.82,5.65895575]
[1750900810099,5.19039852,143.85,143.82,5.65895575]
[1750900810271,10.84935427,143.86,143.82,12.61186535]
[1750900810472,5.19039852,143.85,143.82,12.61186535]
[1750900811397,5.65895575,143.83,143.79,30.0123]
[1750900811704,5.65895575,143.82,143.79,30.0123]
[1750900813190,5.65895575,143.82,143.78,30.87160461]
[1750900813191,5.65895575,143.81,143.78,6.563]
[1750900813393,5.65895575,143.8,143.77,18.64964886]
[1750900813698,5.65895575,143.8,143.76,28.46]
[1750900815616,5.65895575,143.79,143.76,28.46]
[1750900815905,5.65895575,143.78,143.75,20.15014886]
[1750900816904,5.65895575,143.77,143.74,28.46]
[1750900817089,5.65895575,143.77,143.73,47.10964886]
[1750900818314,5.65895575,143.77,143.73,52.76860461]
[1750900819104,5.65895575,143.77,143.73,24.30860461]
[1750900819601,5.65895575,143.77,143.73,31.26603756]
[1750900819789,5.65895575,143.78,143.73,31.26603756]
[1750900820188,5.18619932,143.79,143.75,5.65895575]
[1750900820716,10.84515507,143.79,143.74,5.65895575]
[1750900821419,31.65895575,143.75,143.7,0.02]
[1750900821600,5.65895575,143.73,143.7,0.02]
[1750900821794,10.84515507,143.76,143.71,5.65895575]
[1750900822001,146.5,143.78,143.72,5.65895575]
[1750900822002,36.84515507,143.77,143.72,5.65895575]
[1750900822515,36.84515507,143.77,143.7,52.90860461]
[1750900822516,5.65895575,143.75,143.7,52.90860461]
[1750900823685,5.65895575,143.75,143.71,6.958458]
[1750900824227,5.65895575,143.76,143.71,12.61741375]
[1750900826286,5.65895575,143.75,143.7,54.20813864]
[1750900826487,31.65895575,143.75,143.7,59.86709439]
[1750900826912,5.65895575,143.74,143.7,54.20813864]
[1750900827117,5.65895575,143.74,143.7,59.86709439]
[1750900827614,5.65895575,143.74,143.7,54.20813864]
[1750900831111,5.65895575,143.72,143.7,25.62813864]
[1750900833404,5.65895575,143.72,143.7,0.02]
[1750900837619,5.65895575,143.73,143.7,0.02]
[1750900841825,178.62,143.75,143.7,0.02]
[1750900842021,5.65895575,143.73,143.7,0.02]
[1750900842322,5.65895575,143.72,143.7,0.02]
[1750900843435,5.65895575,143.73,143.7,0.02]
[1750900845405,152.15895575,143.74,143.7,24.32860461]
[1750900845607,146.5,143.74,143.7,24.32860461]
[1750900847107,146.5,143.74,143.71,6.958458]
[1750900848508,152.15895575,143.74,143.71,6.958458]
[1750900849022,146.5,143.74,143.71,6.958458]
[1750900850627,152.15895575,143.74,143.71,6.958458]
[1750900854316,5.65895575,143.73,143.71,6.958458]
[1750900854635,146.5,143.74,143.71,6.958458]
[1750900855535,152.15895575,143.74,143.71,6.958458]
[1750900860943,5.65895575,143.73,143.7,6.97876251]
[1750900861321,5.65895575,143.72,143.7,6.97876251]
[1750900861524,5.65895575,143.71,143.7,6.97876251]
[1750900861824,5.65895575,143.71,143.7,0.02]
[1750900862024,10.85370967,143.71,143.7,0.02]
[1750900862849,172.5,143.74,143.7,0.02]
[1750900862850,5.19475392,143.73,143.7,0.02]
[1750900863033,178.15895575,143.74,143.7,5.67895575]
[1750900864029,178.15895575,143.74,143.71,6.958458]
[1750900865343,178.15895575,143.74,143.7,6.97894224]
[1750900865849,146.5,143.74,143.71,24.30860461]
[1750900867041,146.5,143.74,143.72,6.95797383]
[1750900867634,146.5,143.74,143.73,18.64964886]
[1750900867837,5.65895575,143.77,143.73,24.30860461]
[1750900868039,5.20079488,143.76,143.73,24.30860461]
[1750900868220,158.31895575,143.78,143.73,24.30860461]
[1750900868414,5.20080661,143.77,143.73,24.30860461]
[1750900868722,5.20080661,143.76,143.73,24.30860461]
[1750900868921,158.31895575,143.78,143.74,6.9570057]
[1750900869129,5.19980884,143.77,143.74,6.9570057]
[1750900869323,158.31895575,143.78,143.74,6.9570057]
[1750900869547,10.85788211,143.77,143.74,6.9570057]
[1750900869730,5.65895575,143.77,143.74,6.9570057]
[1750900870125,5.19883769,143.76,143.74,6.9570057]
[1750900870325,152.66,143.78,143.74,6.9570057]
[1750900870637,5.65895575,143.75,143.73,6.95732947]
[1750900871025,5.65895575,143.75,143.72,6.95797383]
[1750900872349,152.66,143.78,143.72,6.95797383]
[1750900872350,5.65895575,143.74,143.72,6.95797383]
[1750900874760,5.65895575,143.74,143.71,6.9584242]
[1750900874927,10.85613317,143.73,143.71,6.9584242]
[1750900875253,5.65895575,143.73,143.71,6.9584242]
[1750900875946,5.65895575,143.73,143.7,25.6285911]
[1750900876359,5.65895575,143.72,143.7,6.97894224]
[1750900878053,5.65895575,143.72,143.7,0.02]
[1750900879846,5.65895575,143.73,143.7,0.02]
[1750900880034,5.196516,143.72,143.7,0.02]
[1750900880221,5.65895575,143.72,143.7,0.02]
[1750900882255,5.65895575,143.73,143.7,0.02]
[1750900882558,5.19750398,143.72,143.7,0.02]
[1750900882728,5.65895575,143.73,143.7,0.02]
[1750900882929,152.15895575,143.75,143.7,5.67895575]
[1750900883142,5.1980197,143.74,143.7,24.32860461]
[1750900883341,5.65895575,143.74,143.71,6.958458]
[1750900884242,5.19795512,143.73,143.71,6.958458]
[1750900884444,152.15895575,143.75,143.71,6.958458]
[1750900884661,10.85707247,143.74,143.71,6.958458]
[1750900884956,5.19811672,143.73,143.71,6.958458]
[1750900885165,5.65895575,143.74,143.71,6.958458]
[1750900885336,5.19694151,143.73,143.71,6.958458]
[1750900885528,5.65895575,143.74,143.71,6.958458]
[1750900886359,146.5,143.75,143.71,6.958458]
[1750900886552,5.19687774,143.74,143.71,12.61741375]
[1750900886758,152.15895575,143.75,143.71,6.958458]
[1750900886952,5.19704828,143.74,143.71,6.958458]
[1750900887252,152.15895575,143.75,143.71,6.958458]
[1750900887557,5.19711542,143.74,143.71,6.958458]
[1750900887758,152.15895575,143.75,143.71,6.958458]
[1750900887940,5.19672289,143.74,143.71,6.958458]
[1750900888147,146.5,143.75,143.71,6.958458]
[1750900888359,10.8554037,143.74,143.71,6.958458]
[1750900888656,10.85484056,143.73,143.71,6.958458]
[1750900888860,5.65895575,143.73,143.71,6.958458]
[1750900889940,5.19378781,143.72,143.71,6.958458]
[1750900890264,5.17197681,143.72,143.71,6.958458]
[1750900893965,5.17197681,143.72,143.7,0.02]
[1750900894263,5.65895575,143.73,143.7,0.02]
[1750900896347,152.15895575,143.75,143.7,24.32860461]
[1750900898946,152.15895575,143.75,143.71,6.958458]
[1750900899160,146.5,143.75,143.72,18.64964886]
[1750900899365,146.5,143.75,143.73,5.65895575]
[1750900900247,146.5,143.75,143.72,18.64964886]
[1750900900472,146.5,143.75,143.72,52.66860461]